[Event "ETCC Women 2013"]
[Site "Warsaw"]
[Date "2013.11.11"]
[Round "4"]
[White "Nazarova, Anastasia"]
[Black "De Seroux, Camille"]
[Result "0-1"]
[ECO "B30"]
[WhiteElo "1727"]
[BlackElo "2066"]
[PlyCount "68"]
[EventDate "2013.??.??"]
[EventCountry "POL"]
[WhiteTeam "Finnland"]
[BlackTeam "Schweiz"]
[WhiteTeamCountry "FIN"]
[BlackTeamCountry "SUI"]
[TimeControl "40/5400+30:1800+30"]

1. e4 {[%emt 0:00:00]} c5 {[%emt 0:00:00]} 2. Nf3 {[%emt 0:00:00]} Nc6 {[%emt
0:00:00]} 3. c4 {[%emt 0:00:00]} e5 {[%emt 0:00:00]} 4. d3 {[%emt 0:00:00]} g6
{[%emt 0:02:02]} 5. g3 {[%emt 0:00:17]} Bg7 {[%emt 0:00:20]} 6. Bg2 {[%emt 0:
00:06]} Nge7 {[%emt 0:00:35]} 7. O-O {[%emt 0:00:17]} O-O {[%emt 0:00:43]} 8.
Nc3 {[%emt 0:00:17]} d6 {[%emt 0:00:32]} 9. Nd5 {[%emt 0:01:02]} h6 {[%emt 0:
02:10]} 10. a3 {[%emt 0:01:00]} f5 {[%emt 0:08:45]} 11. Bd2 {[%emt 0:03:25]} g5
{[%emt 0:05:01]} 12. h3 {[%emt 0:07:50]} f4 {[%emt 0:09:35]} 13. g4 {[%emt 0:
00:38]} Ng6 {[%emt 0:02:49]} 14. b4 {[%emt 0:02:25]} b6 {[%emt 0:04:09]} 15.
Rb1 {[%emt 0:03:47]} Nd4 {[%emt 0:03:41]} 16. Nxd4 {[%emt 0:03:51]} exd4 {
[%emt 0:13:01]} 17. Bf3 {[%emt 0:03:43]} Ne5 {[%emt 0:02:10]} 18. Qe2 {[%emt 0:
01:24]} h5 {[%emt 0:04:24]} 19. Kh2 {[%emt 0:03:28]} Qd7 {[%emt 0:13:44]} 20.
Rg1 {[%emt 0:01:07]} Kf7 {[%emt 0:01:39]} 21. Rg2 {[%emt 0:01:06]} Rh8 {[%emt
0:09:30]} 22. Kg1 {[%emt 0:01:02]} hxg4 {[%emt 0:06:45]} 23. hxg4 {[%emt 0:02:
05]} Rh3 {[%emt 0:00:39]} 24. Rg3 {[%emt 0:09:05]} fxg3 {[%emt 0:00:43]} 25.
Bg2 {[%emt 0:00:43]} Qxg4 {[%emt 0:04:52]} 26. Qxg4 {[%emt 0:00:31]} Bxg4 {
[%emt 0:00:17]} 27. Bxh3 {[%emt 0:00:10]} Bxh3 {[%emt 0:00:20]} 28. fxg3 {
[%emt 0:00:49]} Nf3+ {[%emt 0:01:42]} 29. Kf2 {[%emt 0:00:08]} Nxd2 {[%emt 0:
00:07]} 30. Rb2 {[%emt 0:00:53]} Nxe4+ {[%emt 0:01:02]} 31. dxe4 {[%emt 0:00:
07]} Re8 {[%emt 0:00:25]} 32. Kf3 {[%emt 0:01:42]} g4+ {[%emt 0:01:09]} 33. Kf4
{[%emt 0:00:04]} Bh6+ {[%emt 0:00:10]} 34. Kf5 {[%emt 0:00:09]} Re5# {[%emt 0:
00:04]} 0-1

[Event "ETCC Women 2013"]
[Site "Warsaw"]
[Date "2013.11.11"]
[Round "4"]
[White "Ptacnikova, Lenka"]
[Black "Dolzhikova, Olga"]
[Result "1-0"]
[ECO "A15"]
[WhiteElo "2238"]
[BlackElo "2198"]
[PlyCount "83"]
[EventDate "2013.??.??"]
[EventCountry "POL"]
[WhiteTeam "Island"]
[BlackTeam "Norwegen"]
[WhiteTeamCountry "ISL"]
[BlackTeamCountry "NOR"]
[TimeControl "40/5400+30:1800+30"]

1. c4 {[%emt 0:00:00]} Nf6 {[%emt 0:00:13]} 2. g3 {[%emt 0:00:48]} e6 {[%emt 0:
01:02]} 3. Nf3 {[%emt 0:03:07]} b6 {[%emt 0:03:04]} 4. Bg2 {[%emt 0:01:26]} Bb7
{[%emt 0:00:07]} 5. O-O {[%emt 0:01:03]} Be7 {[%emt 0:00:05]} 6. b3 {[%emt 0:
04:18]} O-O {[%emt 0:02:35]} 7. Bb2 {[%emt 0:00:19]} d5 {[%emt 0:01:40]} 8.
cxd5 {[%emt 0:12:41]} exd5 {[%emt 0:05:36]} 9. d4 {[%emt 0:06:47]} Ne4 {[%emt
0:04:36]} 10. Nbd2 {[%emt 0:00:29]} Nxd2 {[%emt 0:03:25]} 11. Qxd2 {[%emt 0:00:
08]} Nd7 {[%emt 0:01:32]} 12. Rac1 {[%emt 0:01:08]} Re8 {[%emt 0:10:26]} 13.
Ne5 {[%emt 0:04:55]} Nxe5 {[%emt 0:04:41]} 14. dxe5 {[%emt 0:00:04]} c6 {[%emt
0:03:50]} 15. Rfd1 {[%emt 0:02:32]} f6 {[%emt 0:02:54]} 16. e4 {[%emt 0:11:33]}
dxe4 {[%emt 0:20:50]} 17. Qc2 {[%emt 0:02:24]} Qc7 {[%emt 0:08:59]} 18. Bxe4 {
[%emt 0:09:41]} c5 {[%emt 0:14:33]} 19. Bxb7 {[%emt 0:06:40]} Qxb7 {[%emt 0:00:
05]} 20. exf6 {[%emt 0:00:10]} Bxf6 {[%emt 0:00:31]} 21. Bxf6 {[%emt 0:00:08]}
gxf6 {[%emt 0:00:03]} 22. Qf5 {[%emt 0:00:22]} Qf7 {[%emt 0:03:26]} 23. Rd7 {
[%emt 0:03:44]} Qg6 {[%emt 0:00:08]} 24. Qd5+ {[%emt 0:00:34]} Kh8 {[%emt 0:00:
09]} 25. Rd1 {[%emt 0:05:23]} Qg8 {[%emt 0:03:37]} 26. Qf5 {[%emt 0:06:12]} Qg6
{[%emt 0:00:58]} 27. Qf3 {[%emt 0:00:40]} Re4 {[%emt 0:02:26]} 28. Rc7 {[%emt
0:09:14]} Rae8 {[%emt 0:00:23]} 29. Rdd7 {[%emt 0:01:07]} Re1+ {[%emt 0:00:53]}
30. Kg2 {[%emt 0:00:03]} Qe4 {[%emt 0:00:12]} 31. Qxe4 {[%emt 0:00:43]} R1xe4 {
[%emt 0:00:06]} 32. Rxh7+ {[%emt 0:00:09]} Kg8 {[%emt 0:00:03]} 33. Rcg7+ {
[%emt 0:00:08]} Kf8 {[%emt 0:00:04]} 34. Rxa7 {[%emt 0:00:12]} Kg8 {[%emt 0:00:
13]} 35. Rag7+ {[%emt 0:00:37]} Kf8 {[%emt 0:00:03]} 36. Rf7+ {[%emt 0:02:32]}
Kg8 {[%emt 0:00:05]} 37. Rhg7+ {[%emt 0:00:14]} Kh8 {[%emt 0:00:05]} 38. Rg6 {
[%emt 0:00:22]} b5 {[%emt 0:00:36]} 39. Rgxf6 {[%emt 0:00:45]} c4 {[%emt 0:00:
32]} 40. bxc4 {[%emt 0:00:00]} bxc4 {[%emt 0:00:00]} 41. Rc7 {[%emt 0:02:40]}
Ra8 {[%emt 0:00:42]} 42. h4 {[%emt 0:04:30]} 1-0

[Event "ETCC Women 2013"]
[Site "Warsaw"]
[Date "2013.11.11"]
[Round "4"]
[White "Puuska, Heini"]
[Black "Heinatz, Dr. Gundula"]
[Result "0-1"]
[ECO "A20"]
[WhiteElo "1982"]
[BlackElo "2169"]
[PlyCount "122"]
[EventDate "2013.??.??"]
[EventCountry "POL"]
[WhiteTeam "Finnland"]
[BlackTeam "Schweiz"]
[WhiteTeamCountry "FIN"]
[BlackTeamCountry "SUI"]
[TimeControl "40/5400+30:1800+30"]

1. c4 {[%emt 0:00:00]} e5 {[%emt 0:00:00]} 2. g3 {[%emt 0:00:00]} Nf6 {[%emt 0:
02:49]} 3. Bg2 {[%emt 0:00:36]} d5 {[%emt 0:00:15]} 4. cxd5 {[%emt 0:00:22]}
Nxd5 {[%emt 0:00:20]} 5. Nf3 {[%emt 0:00:45]} Nc6 {[%emt 0:00:05]} 6. O-O {
[%emt 0:00:30]} Nb6 {[%emt 0:01:36]} 7. d3 {[%emt 0:01:12]} Be7 {[%emt 0:00:14]
} 8. a3 {[%emt 0:01:09]} O-O {[%emt 0:03:24]} 9. b4 {[%emt 0:00:30]} Re8 {
[%emt 0:06:27]} 10. Bb2 {[%emt 0:02:52]} Bf6 {[%emt 0:00:16]} 11. Nbd2 {[%emt
0:01:16]} g6 {[%emt 0:14:19]} 12. Rc1 {[%emt 0:08:19]} a6 {[%emt 0:06:16]} 13.
Nb3 {[%emt 0:09:50]} Nd4 {[%emt 0:11:17]} 14. Nfxd4 {[%emt 0:03:56]} exd4 {
[%emt 0:00:10]} 15. e3 {[%emt 0:04:56]} dxe3 {[%emt 0:01:39]} 16. Bxf6 {[%emt
0:00:20]} Qxf6 {[%emt 0:00:16]} 17. fxe3 {[%emt 0:00:37]} Qe7 {[%emt 0:22:10]}
18. e4 {[%emt 0:01:15]} c6 {[%emt 0:01:17]} 19. Rc2 {[%emt 0:04:54]} Na4 {
[%emt 0:03:19]} 20. Rcf2 {[%emt 0:04:48]} Rf8 {[%emt 0:00:33]} 21. Qd2 {[%emt
0:02:47]} a5 {[%emt 0:03:05]} 22. Nxa5 {[%emt 0:03:38]} Be6 {[%emt 0:02:29]}
23. Qc2 {[%emt 0:04:53]} Nb6 {[%emt 0:05:32]} 24. d4 {[%emt 0:04:27]} Rfd8 {
[%emt 0:00:16]} 25. Qc5 {[%emt 0:11:39]} Qxc5 {[%emt 0:00:54]} 26. dxc5 {[%emt
0:00:08]} Rxa5 {[%emt 0:00:36]} 27. bxa5 {[%emt 0:02:08]} Nc4 {[%emt 0:00:01]}
28. a6 {[%emt 0:01:43]} bxa6 {[%emt 0:00:02]} 29. Rb1 {[%emt 0:01:35]} a5 {
[%emt 0:01:36]} 30. Bf1 {[%emt 0:01:41]} Nd2 {[%emt 0:02:38]} 31. Re1 {[%emt 0:
04:36]} a4 {[%emt 0:00:23]} 32. Ba6 {[%emt 0:01:17]} Rd4 {[%emt 0:00:45]} 33.
Bb7 {[%emt 0:04:44]} Nxe4 {[%emt 0:01:28]} 34. Rf4 {[%emt 0:03:23]} Bd5 {[%emt
0:00:22]} 35. Rb1 {[%emt 0:03:42]} Rc4 {[%emt 0:02:46]} 36. Re1 {[%emt 0:05:33]
} h5 {[%emt 0:00:19]} 37. Ba6 {[%emt 0:01:08]} Rd4 {[%emt 0:00:11]} 38. Bf1 {
[%emt 0:00:23]} f5 {[%emt 0:04:07]} 39. Bg2 {[%emt 0:00:14]} Rc4 {[%emt 0:01:
06]} 40. Bxe4 {[%emt 0:00:00]} Bxe4 {[%emt 0:00:00]} 41. Kf2 {[%emt 0:07:12]}
Kg7 {[%emt 0:03:44]} 42. Rexe4 {[%emt 0:01:55]} fxe4 {[%emt 0:00:33]} 43. h4 {
[%emt 0:01:45]} Rc2+ {[%emt 0:02:32]} 44. Ke3 {[%emt 0:01:03]} Rxc5 {[%emt 0:
00:12]} 45. Rxe4 {[%emt 0:00:40]} Rc3+ {[%emt 0:00:11]} 46. Kf4 {[%emt 0:01:08]
} Rxa3 {[%emt 0:02:40]} 47. Rc4 {[%emt 0:00:12]} Ra1 {[%emt 0:00:13]} 48. Rxc6
{[%emt 0:00:32]} Rf1+ {[%emt 0:00:48]} 49. Ke3 {[%emt 0:01:01]} Rf6 {[%emt 0:
00:45]} 50. Rc3 {[%emt 0:04:47]} Ra6 {[%emt 0:00:10]} 51. Ra3 {[%emt 0:00:04]}
Kf6 {[%emt 0:00:29]} 52. Kf4 {[%emt 0:01:22]} Ke6 {[%emt 0:01:06]} 53. g4 {
[%emt 0:01:16]} hxg4 {[%emt 0:00:16]} 54. Kxg4 {[%emt 0:00:05]} Kd5 {[%emt 0:
00:17]} 55. Kg5 {[%emt 0:01:06]} Kc5 {[%emt 0:00:14]} 56. Rf3 {[%emt 0:03:19]}
a3 {[%emt 0:00:35]} 57. Rxa3 {[%emt 0:01:44]} Rxa3 {[%emt 0:00:04]} 58. Kxg6 {
[%emt 0:00:05]} Kd6 {[%emt 0:03:39]} 59. h5 {[%emt 0:00:28]} Ke7 {[%emt 0:01:
28]} 60. h6 {[%emt 0:05:41]} Kf8 {[%emt 0:00:25]} 61. Kh7 {[%emt 0:00:42]} Ra6
{[%emt 0:00:14]} 0-1

[Event "ETCC Women 2013"]
[Site "Warsaw"]
[Date "2013.11.11"]
[Round "4"]
[White "Reppen, Ellisiv"]
[Black "Finnbogadottir, Tinna Kristin"]
[Result "0-1"]
[ECO "C60"]
[WhiteElo "2008"]
[BlackElo "1882"]
[PlyCount "160"]
[EventDate "2013.??.??"]
[EventCountry "POL"]
[WhiteTeam "Norwegen"]
[BlackTeam "Island"]
[WhiteTeamCountry "NOR"]
[BlackTeamCountry "ISL"]
[TimeControl "40/5400+30:1800+30"]

1. e4 {[%emt 0:00:00]} e5 {[%emt 0:00:00]} 2. Nf3 {[%emt 0:00:00]} Nc6 {[%emt
0:00:00]} 3. Bb5 {[%emt 0:00:00]} Nge7 {[%emt 0:00:00]} 4. O-O {[%emt 0:00:35]}
g6 {[%emt 0:00:00]} 5. c3 {[%emt 0:00:36]} Bg7 {[%emt 0:00:47]} 6. d4 {[%emt 0:
00:51]} exd4 {[%emt 0:01:44]} 7. cxd4 {[%emt 0:00:23]} O-O {[%emt 0:01:02]} 8.
Nc3 {[%emt 0:01:48]} d5 {[%emt 0:07:31]} 9. exd5 {[%emt 0:06:18]} Nxd5 {[%emt
0:00:09]} 10. Bg5 {[%emt 0:10:15]} Qd6 {[%emt 0:03:52]} 11. Bc4 {[%emt 0:08:19]
} Nb6 {[%emt 0:00:54]} 12. Nb5 {[%emt 0:05:34]} Qd7 {[%emt 0:03:30]} 13. Be2 {
[%emt 0:09:56]} a6 {[%emt 0:00:17]} 14. Nc3 {[%emt 0:01:20]} Nxd4 {[%emt 0:00:
37]} 15. Nxd4 {[%emt 0:01:02]} Qxd4 {[%emt 0:02:21]} 16. Qc1 {[%emt 0:03:44]}
Be6 {[%emt 0:02:23]} 17. Rd1 {[%emt 0:02:33]} Qb4 {[%emt 0:02:04]} 18. a3 {
[%emt 0:07:04]} Qa5 {[%emt 0:05:35]} 19. Bf3 {[%emt 0:06:02]} c6 {[%emt 0:01:
31]} 20. Be7 {[%emt 0:11:55]} Rfe8 {[%emt 0:01:35]} 21. Bb4 {[%emt 0:01:17]}
Qf5 {[%emt 0:02:03]} 22. Ne4 {[%emt 0:01:52]} Nc8 {[%emt 0:08:19]} 23. Ng3 {
[%emt 0:00:59]} Qe5 {[%emt 0:04:28]} 24. Bc3 {[%emt 0:00:26]} Qc7 {[%emt 0:00:
37]} 25. Bxg7 {[%emt 0:01:16]} Kxg7 {[%emt 0:00:08]} 26. Qc3+ {[%emt 0:07:04]}
f6 {[%emt 0:00:31]} 27. Ne4 {[%emt 0:00:38]} Qe5 {[%emt 0:04:02]} 28. Qxe5 {
[%emt 0:02:02]} fxe5 {[%emt 0:00:08]} 29. Nc5 {[%emt 0:00:28]} Re7 {[%emt 0:02:
12]} 30. Re1 {[%emt 0:01:49]} Bd5 {[%emt 0:01:56]} 31. Bxd5 {[%emt 0:02:24]}
cxd5 {[%emt 0:00:09]} 32. Rad1 {[%emt 0:01:10]} Nb6 {[%emt 0:00:22]} 33. Nd3 {
[%emt 0:00:50]} Rae8 {[%emt 0:02:17]} 34. Nb4 {[%emt 0:00:27]} d4 {[%emt 0:00:
40]} 35. f4 {[%emt 0:01:22]} exf4 {[%emt 0:03:07]} 36. Rxe7+ {[%emt 0:00:09]}
Rxe7 {[%emt 0:00:06]} 37. Rxd4 {[%emt 0:00:05]} g5 {[%emt 0:00:22]} 38. h4 {
[%emt 0:01:42]} h6 {[%emt 0:01:07]} 39. hxg5 {[%emt 0:00:52]} hxg5 {[%emt 0:00:
08]} 40. b3 {[%emt 0:00:00]} Rd7 {[%emt 0:00:00]} 41. Rxd7+ {[%emt 0:08:45]}
Nxd7 {[%emt 0:03:09]} 42. Nd5 {[%emt 0:00:48]} Kf7 {[%emt 0:01:00]} 43. Kf2 {
[%emt 0:01:15]} Ke6 {[%emt 0:02:02]} 44. Nc3 {[%emt 0:02:29]} Ke5 {[%emt 0:01:
25]} 45. g3 {[%emt 0:03:19]} fxg3+ {[%emt 0:00:31]} 46. Kxg3 {[%emt 0:00:11]}
Nc5 {[%emt 0:00:05]} 47. Kg4 {[%emt 0:01:26]} Nxb3 {[%emt 0:01:05]} 48. Kxg5 {
[%emt 0:00:49]} Nc5 {[%emt 0:01:40]} 49. Kg4 {[%emt 0:02:13]} Kd4 {[%emt 0:00:
30]} 50. Ne2+ {[%emt 0:01:51]} Kd3 {[%emt 0:00:15]} 51. Kf3 {[%emt 0:00:46]}
Nb3 {[%emt 0:00:30]} 52. Nf4+ {[%emt 0:01:00]} Kc3 {[%emt 0:01:01]} 53. Ke4 {
[%emt 0:03:36]} Kb2 {[%emt 0:00:46]} 54. Kd5 {[%emt 0:01:26]} Kxa3 {[%emt 0:00:
21]} 55. Nd3 {[%emt 0:03:12]} Ka4 {[%emt 0:02:07]} 56. Kc4 {[%emt 0:01:50]} b5+
{[%emt 0:02:14]} 57. Kc3 {[%emt 0:00:24]} Ka3 {[%emt 0:01:31]} 58. Nb4 {[%emt
0:02:41]} a5 {[%emt 0:01:00]} 59. Nc6 {[%emt 0:01:46]} Ka4 {[%emt 0:02:01]} 60.
Kb2 {[%emt 0:01:15]} Nc5 {[%emt 0:00:45]} 61. Nd4 {[%emt 0:01:11]} Ne4 {[%emt
0:01:02]} 62. Nc2 {[%emt 0:00:55]} Nd6 {[%emt 0:02:26]} 63. Nd4 {[%emt 0:01:03]
} Kb4 {[%emt 0:00:15]} 64. Nc6+ {[%emt 0:00:17]} Ka4 {[%emt 0:04:44]} 65. Nd4 {
[%emt 0:00:43]} b4 {[%emt 0:02:51]} 66. Nb3 {[%emt 0:01:06]} Nc4+ {[%emt 0:00:
52]} 67. Ka2 {[%emt 0:00:31]} Kb5 {[%emt 0:00:29]} 68. Nd4+ {[%emt 0:00:24]}
Kc5 {[%emt 0:00:14]} 69. Ne6+ {[%emt 0:00:50]} Kd5 {[%emt 0:00:39]} 70. Nc7+ {
[%emt 0:00:17]} Kd4 {[%emt 0:00:26]} 71. Kb3 {[%emt 0:00:35]} Nd2+ {[%emt 0:02:
01]} 72. Ka4 {[%emt 0:00:37]} Kc5 {[%emt 0:03:27]} 73. Ne6+ {[%emt 0:00:56]}
Kc4 {[%emt 0:00:23]} 74. Nf4 {[%emt 0:00:43]} b3 {[%emt 0:00:44]} 75. Ka3 {
[%emt 0:00:11]} Kc3 {[%emt 0:02:09]} 76. Ne2+ {[%emt 0:00:25]} Kd3 {[%emt 0:00:
22]} 77. Nc1+ {[%emt 0:00:41]} Kc2 {[%emt 0:00:23]} 78. Ne2 {[%emt 0:00:21]}
Nc4+ {[%emt 0:01:18]} 79. Ka4 {[%emt 0:00:05]} b2 {[%emt 0:00:15]} 80. Nd4+ {
[%emt 0:00:15]} Kd3 {[%emt 0:00:41]} 0-1

[Event "ETCC Women 2013"]
[Site "Warsaw"]
[Date "2013.11.11"]
[Round "4"]
[White "Seps, Monika"]
[Black "Savola, Laura"]
[Result "1-0"]
[ECO "C05"]
[WhiteElo "2260"]
[BlackElo "2076"]
[PlyCount "69"]
[EventDate "2013.??.??"]
[EventCountry "POL"]
[WhiteTeam "Schweiz"]
[BlackTeam "Finnland"]
[WhiteTeamCountry "SUI"]
[BlackTeamCountry "FIN"]
[TimeControl "40/5400+30:1800+30"]

1. e4 {[%emt 0:00:00]} e6 {[%emt 0:00:00]} 2. d4 {[%emt 0:00:00]} d5 {[%emt 0:
00:00]} 3. Nd2 {[%emt 0:00:00]} Nf6 {[%emt 0:00:03]} 4. e5 {[%emt 0:00:00]}
Nfd7 {[%emt 0:00:07]} 5. Bd3 {[%emt 0:00:00]} c5 {[%emt 0:00:08]} 6. c3 {[%emt
0:00:03]} Nc6 {[%emt 0:00:13]} 7. Ndf3 {[%emt 0:00:10]} cxd4 {[%emt 0:00:28]}
8. cxd4 {[%emt 0:00:03]} f6 {[%emt 0:00:28]} 9. exf6 {[%emt 0:00:08]} Nxf6 {
[%emt 0:00:05]} 10. Nh3 {[%emt 0:00:22]} Bd6 {[%emt 0:05:31]} 11. O-O {[%emt 0:
00:31]} Qc7 {[%emt 0:01:15]} 12. Re1 {[%emt 0:00:23]} O-O {[%emt 0:03:26]} 13.
Nhg5 {[%emt 0:00:20]} e5 {[%emt 0:08:25]} 14. dxe5 {[%emt 0:02:02]} Nxe5 {
[%emt 0:01:31]} 15. Bxh7+ {[%emt 0:00:49]} Nxh7 {[%emt 0:45:04]} 16. Rxe5 {
[%emt 0:02:57]} Nxg5 {[%emt 0:25:32]} 17. Rxg5 {[%emt 0:02:48]} Be6 {[%emt 0:
05:40]} 18. Be3 {[%emt 0:03:32]} Rad8 {[%emt 0:00:28]} 19. Rc1 {[%emt 0:05:14]}
Qe7 {[%emt 0:00:19]} 20. Nd4 {[%emt 0:05:41]} Bd7 {[%emt 0:00:05]} 21. Qb3 {
[%emt 0:12:03]} Rf7 {[%emt 0:00:00]} 22. Qxb7 {[%emt 0:07:37]} Be5 {[%emt 0:00:
01]} 23. Qxa7 {[%emt 0:10:55]} Re8 {[%emt 0:01:07]} 24. g3 {[%emt 0:10:49]} Qf6
{[%emt 0:00:06]} 25. Qc5 {[%emt 0:11:29]} Rc8 {[%emt 0:00:30]} 26. Qxc8+ {
[%emt 0:00:34]} Bxc8 {[%emt 0:00:02]} 27. Rxc8+ {[%emt 0:00:05]} Kh7 {[%emt 0:
01:09]} 28. Rc6 {[%emt 0:02:41]} Qe7 {[%emt 0:01:37]} 29. Re6 {[%emt 0:02:20]}
Qb4 {[%emt 0:00:38]} 30. Rgxe5 {[%emt 0:01:09]} Qxb2 {[%emt 0:00:27]} 31. Re8 {
[%emt 0:04:31]} g6 {[%emt 0:00:33]} 32. h4 {[%emt 0:06:20]} Qxa2 {[%emt 0:00:
20]} 33. h5 {[%emt 0:00:10]} gxh5 {[%emt 0:00:41]} 34. Rxh5+ {[%emt 0:00:31]}
Kg6 {[%emt 0:00:08]} 35. Rh6+ {[%emt 0:00:22]} 1-0

[Event "ETCC Women 2013"]
[Site "Warsaw"]
[Date "2013.11.11"]
[Round "4"]
[White "Stoeri, Laura"]
[Black "Rautanen, Sari"]
[Result "1-0"]
[ECO "C41"]
[WhiteElo "2102"]
[BlackElo "1956"]
[PlyCount "125"]
[EventDate "2013.??.??"]
[EventCountry "POL"]
[WhiteTeam "Schweiz"]
[BlackTeam "Finnland"]
[WhiteTeamCountry "SUI"]
[BlackTeamCountry "FIN"]
[TimeControl "40/5400+30:1800+30"]

1. e4 {[%emt 0:00:00]} d6 {[%emt 0:00:00]} 2. d4 {[%emt 0:00:00]} Nf6 {[%emt 0:
00:00]} 3. Nc3 {[%emt 0:00:00]} e5 {[%emt 0:00:00]} 4. Nf3 {[%emt 0:00:00]}
Nbd7 {[%emt 0:00:00]} 5. Bc4 {[%emt 0:00:00]} Be7 {[%emt 0:00:06]} 6. O-O {
[%emt 0:00:00]} O-O {[%emt 0:00:06]} 7. Re1 {[%emt 0:00:07]} c6 {[%emt 0:00:11]
} 8. a4 {[%emt 0:00:06]} Qc7 {[%emt 0:00:21]} 9. Ba2 {[%emt 0:04:16]} Re8 {
[%emt 0:00:46]} 10. Bg5 {[%emt 0:03:06]} h6 {[%emt 0:01:10]} 11. Bh4 {[%emt 0:
05:36]} Bf8 {[%emt 0:09:16]} 12. h3 {[%emt 0:04:58]} g6 {[%emt 0:06:40]} 13.
Bg3 {[%emt 0:12:39]} Bg7 {[%emt 0:06:06]} 14. d5 {[%emt 0:08:02]} c5 {[%emt 0:
11:57]} 15. Nb5 {[%emt 0:07:27]} Qb8 {[%emt 0:01:02]} 16. a5 {[%emt 0:01:25]}
a6 {[%emt 0:02:46]} 17. Na3 {[%emt 0:00:27]} b5 {[%emt 0:00:48]} 18. axb6 {
[%emt 0:01:30]} Nxb6 {[%emt 0:00:27]} 19. Nd2 {[%emt 0:05:40]} Bd7 {[%emt 0:03:
58]} 20. Bb3 {[%emt 0:08:04]} a5 {[%emt 0:02:25]} 21. c3 {[%emt 0:03:26]} a4 {
[%emt 0:02:46]} 22. Bc2 {[%emt 0:00:16]} Qc7 {[%emt 0:01:41]} 23. Nac4 {[%emt
0:13:14]} Reb8 {[%emt 0:03:42]} 24. Nxb6 {[%emt 0:02:24]} Qxb6 {[%emt 0:01:37]}
25. Ra2 {[%emt 0:11:58]} Bf8 {[%emt 0:07:55]} 26. Qf3 {[%emt 0:03:00]} Be7 {
[%emt 0:04:57]} 27. Rea1 {[%emt 0:00:04]} Nh5 {[%emt 0:03:37]} 28. Nc4 {[%emt
0:02:33]} Qa6 {[%emt 0:05:44]} 29. Bd3 {[%emt 0:02:21]} Qb7 {[%emt 0:01:18]}
30. Ne3 {[%emt 0:01:28]} Kg7 {[%emt 0:03:27]} 31. Kh2 {[%emt 0:00:12]} Bg5 {
[%emt 0:02:57]} 32. h4 {[%emt 0:00:52]} Bxe3 {[%emt 0:00:28]} 33. Qxe3 {[%emt
0:00:09]} f5 {[%emt 0:07:56]} 34. exf5 {[%emt 0:00:18]} gxf5 {[%emt 0:01:03]}
35. Qf3 {[%emt 0:00:42]} Nxg3 {[%emt 0:01:23]} 36. Qxg3+ {[%emt 0:00:03]} Kh7 {
[%emt 0:03:33]} 37. Bc4 {[%emt 0:01:13]} Rg8 {[%emt 0:00:32]} 38. Qd3 {[%emt 0:
00:30]} Rg4 {[%emt 0:01:05]} 39. b3 {[%emt 0:00:40]} Rxh4+ {[%emt 0:01:49]} 40.
Kg1 {[%emt 0:00:00]} e4 {[%emt 0:00:00]} 41. Qg3 {[%emt 0:08:11]} Rg4 {[%emt 0:
02:12]} 42. Qxd6 {[%emt 0:00:12]} Rag8 {[%emt 0:00:33]} 43. Bf1 {[%emt 0:03:50]
} Bb5 {[%emt 0:06:46]} 44. c4 {[%emt 0:01:08]} Qg7 {[%emt 0:01:27]} 45. Qh2 {
[%emt 0:02:42]} Qg5 {[%emt 0:05:15]} 46. cxb5 {[%emt 0:11:40]} Rh4 {[%emt 0:01:
52]} 47. Qe5 {[%emt 0:03:16]} Qh5 {[%emt 0:01:51]} 48. f3 {[%emt 0:00:22]} Rh1+
{[%emt 0:07:07]} 49. Kf2 {[%emt 0:00:01]} Qh4+ {[%emt 0:03:20]} 50. Ke3 {[%emt
0:01:12]} Qg5+ {[%emt 0:01:20]} 51. Qf4 {[%emt 0:02:12]} Qf6 {[%emt 0:01:49]}
52. Qc7+ {[%emt 0:00:46]} Rg7 {[%emt 0:00:19]} 53. Qxc5 {[%emt 0:00:02]} f4+ {
[%emt 0:01:26]} 54. Kd2 {[%emt 0:01:58]} e3+ {[%emt 0:01:09]} 55. Ke2 {[%emt 0:
00:25]} Qh4 {[%emt 0:00:55]} 56. Qc2+ {[%emt 0:00:26]} Kh8 {[%emt 0:00:25]} 57.
Qc8+ {[%emt 0:00:22]} Kh7 {[%emt 0:01:09]} 58. Qc2+ {[%emt 0:00:02]} Kh8 {
[%emt 0:00:13]} 59. Kd3 {[%emt 0:01:06]} Qf6 {[%emt 0:01:06]} 60. Rxa4 {[%emt
0:00:34]} Qf5+ {[%emt 0:00:55]} 61. Kc3 {[%emt 0:00:39]} Qe5+ {[%emt 0:02:03]}
62. Kb4 {[%emt 0:00:17]} Qd4+ {[%emt 0:00:43]} 63. Qc4 {[%emt 0:00:14]} 1-0

[Event "ETCC Women 2013"]
[Site "Warsaw"]
[Date "2013.11.11"]
[Round "4"]
[White "Zimina, Olga"]
[Black "Ciuksyte, Dagne"]
[Result "1-0"]
[ECO "A06"]
[WhiteElo "2338"]
[BlackElo "2355"]
[PlyCount "73"]
[EventDate "2013.??.??"]
[EventCountry "POL"]
[WhiteTeam "Italien"]
[BlackTeam "England"]
[WhiteTeamCountry "ITA"]
[BlackTeamCountry "ENG"]
[TimeControl "40/5400+30:1800+30"]

1. Nf3 {[%emt 0:00:00]} d5 {[%emt 0:00:00]} 2. c4 {[%emt 0:00:00]} c6 {[%emt 0:
00:18]} 3. g3 {[%emt 0:00:00]} Nf6 {[%emt 0:00:14]} 4. Bg2 {[%emt 0:00:29]} Bg4
{[%emt 0:00:31]} 5. Ne5 {[%emt 0:00:52]} Bf5 {[%emt 0:02:58]} 6. cxd5 {[%emt 0:
00:19]} cxd5 {[%emt 0:00:17]} 7. Nc3 {[%emt 0:00:37]} e6 {[%emt 0:07:32]} 8. g4
{[%emt 0:02:50]} Bg6 {[%emt 0:07:04]} 9. h4 {[%emt 0:00:47]} h5 {[%emt 0:19:55]
} 10. Nxg6 {[%emt 0:15:24]} fxg6 {[%emt 0:00:11]} 11. g5 {[%emt 0:26:21]} Ng8 {
[%emt 0:04:22]} 12. Qb3 {[%emt 0:00:25]} Nc6 {[%emt 0:18:43]} 13. Qxb7 {[%emt
0:17:41]} Nge7 {[%emt 0:00:41]} 14. d3 {[%emt 0:10:12]} Rb8 {[%emt 0:09:16]}
15. Qa6 {[%emt 0:01:23]} Rb6 {[%emt 0:00:13]} 16. Qa4 {[%emt 0:00:10]} Rb4 {
[%emt 0:00:11]} 17. Qd1 {[%emt 0:00:10]} Nf5 {[%emt 0:00:19]} 18. e4 {[%emt 0:
00:34]} dxe4 {[%emt 0:00:40]} 19. dxe4 {[%emt 0:01:21]} Nfd4 {[%emt 0:00:52]}
20. O-O {[%emt 0:07:28]} Bc5 {[%emt 0:03:48]} 21. a3 {[%emt 0:00:14]} Rb3 {
[%emt 0:01:42]} 22. e5 {[%emt 0:10:50]} Nxe5 {[%emt 0:08:44]} 23. Bf4 {[%emt 0:
01:05]} Ng4 {[%emt 0:04:05]} 24. Ne4 {[%emt 0:00:07]} O-O {[%emt 0:04:44]} 25.
Nxc5 {[%emt 0:00:48]} Rxf4 {[%emt 0:00:33]} 26. Nxe6 {[%emt 0:02:10]} Qb8 {
[%emt 0:03:28]} 27. Rc1 {[%emt 0:00:36]} Nxe6 {[%emt 0:01:05]} 28. Qd7 {[%emt
0:00:21]} Nf8 {[%emt 0:00:58]} 29. Rc8 {[%emt 0:00:14]} Qb5 {[%emt 0:00:33]}
30. Qd6 {[%emt 0:00:47]} Rf5 {[%emt 0:00:23]} 31. Rxf8+ {[%emt 0:00:18]} Rxf8 {
[%emt 0:00:32]} 32. Bd5+ {[%emt 0:00:07]} Kh7 {[%emt 0:00:26]} 33. Bxb3 {[%emt
0:00:08]} Qxb3 {[%emt 0:00:39]} 34. Qxf8 {[%emt 0:00:05]} Qh3 {[%emt 0:00:25]}
35. Qf4 {[%emt 0:00:18]} Qxh4 {[%emt 0:00:26]} 36. Rc1 {[%emt 0:00:08]} Qh3 {
[%emt 0:00:36]} 37. Rc3 {[%emt 0:00:06]} 1-0